[Event "MČR v bleskovém šachu družstev 2019"]
[Site "Teplice, Czech Republic"]
[Date "2019.09.14"]
[Round "2.27"]
[White "Vrbata, Zbynek"]
[Black "Zima, Jan"]
[Result "1-0"]
[TimeControl "3 mim. + 2 s"]
[WhiteTitle "FM"]
[WhiteFideId "301256"]
[WhiteElo "2324"]
[BlackElo "2048"]

1. d4 {[%clk 00:03:02]} {[%emt 00:03:37]} Nf6 {[%clk 00:03:03]} {[%emt
00:00:14]} 2. c4 {[%clk 00:03:03]} g6 {[%clk 00:03:04]} {[%emt 00:00:01]} 3. f3
{[%clk 00:03:04]} {[%emt 00:00:02]} c5 {[%clk 00:03:02]} {[%emt 00:00:03]} 4.
d5 {[%clk 00:03:04]} {[%emt 00:00:01]} Bg7 {[%clk 00:02:47]} {[%emt 00:00:17]}
5. e4 {[%clk 00:03:04]} {[%emt 00:00:02]} d6 {[%clk 00:02:48]} {[%emt
00:00:02]} 6. Ne2 {[%clk 00:03:04]} {[%emt 00:00:03]} e6 {[%clk 00:02:49]} 7.
Bg5 {[%clk 00:03:02]} {[%emt 00:00:02]} exd5 8. cxd5 {[%clk 00:03:03]} O-O
{[%clk 00:02:49]} {[%emt 00:00:02]} 9. Nec3 {[%clk 00:03:03]} {[%emt 00:00:02]}
a6 {[%clk 00:02:36]} {[%emt 00:00:17]} 10. a4 {[%clk 00:03:03]} Nbd7 {[%clk
00:02:33]} {[%emt 00:00:05]} 11. Be2 {[%clk 00:03:04]} {[%emt 00:00:02]} Qc7
{[%clk 00:02:16]} {[%emt 00:00:18]} 12. Na3 {[%clk 00:03:04]} {[%emt 00:00:03]}
Ne5 {[%clk 00:02:12]} {[%emt 00:00:05]} 13. O-O {[%clk 00:03:01]} {[%emt
00:00:04]} Re8 {[%clk 00:02:11]} {[%emt 00:00:05]} 14. h3 {[%clk 00:03:00]}
{[%emt 00:00:02]} h6 {[%clk 00:02:09]} {[%emt 00:00:05]} 15. Be3 {[%clk
00:02:59]} {[%emt 00:00:02]} b6 {[%clk 00:02:06]} {[%emt 00:00:05]} 16. Qd2
{[%clk 00:02:59]} {[%emt 00:00:02]} Kh7 {[%clk 00:02:06]} {[%emt 00:00:03]} 17.
Rfc1 {[%clk 00:02:47]} {[%emt 00:00:14]} Rb8 {[%clk 00:01:29]} {[%emt
00:00:39]} 18. b4 {[%clk 00:02:19]} {[%emt 00:00:29]} cxb4 {[%clk 00:01:02]}
{[%emt 00:00:30]} 19. Na2 {[%clk 00:02:20]} Qe7 {[%clk 00:00:59]} {[%emt
00:00:06]} 20. Nxb4 {[%clk 00:02:21]} {[%emt 00:00:02]} Bb7 {[%clk 00:00:54]}
{[%emt 00:00:06]} 21. Nxa6 {[%clk 00:02:13]} {[%emt 00:00:10]} Bxa6 {[%clk
00:00:40]} {[%emt 00:00:16]} 22. Bxa6 {[%clk 00:02:14]} Ned7 {[%clk 00:00:35]}
{[%emt 00:00:07]} 23. Rc7 {[%clk 00:02:04]} {[%emt 00:00:12]} Qd8 {[%clk
00:00:33]} {[%emt 00:00:04]} 24. Bb5 {[%clk 00:01:56]} {[%emt 00:00:10]} Qxc7
{[%clk 00:00:32]} {[%emt 00:00:04]} 25. Rc1 {[%clk 00:01:53]} {[%emt 00:00:04]}
Qa7 {[%clk 00:00:32]} {[%emt 00:00:02]} 26. Nc4 {[%clk 00:01:53]} {[%emt
00:00:02]} Bf8 {[%clk 00:00:32]} {[%emt 00:00:03]} 27. a5 {[%clk 00:01:51]}
{[%emt 00:00:04]} Qa8 {[%clk 00:00:31]} {[%emt 00:00:03]} 28. axb6 {[%clk
00:01:51]} {[%emt 00:00:02]} Rec8 {[%clk 00:00:30]} {[%emt 00:00:03]} 29. Ra1
{[%clk 00:01:48]} {[%emt 00:00:05]} Qb7 {[%clk 00:00:31]} 30. Ra7 {[%clk
00:01:48]} {[%emt 00:00:02]} Qxa7 {[%clk 00:00:28]} {[%emt 00:00:06]} 31. bxa7
{[%clk 00:01:48]} Rxb5 {[%clk 00:00:29]} 32. Qa2 {[%clk 00:01:36]} {[%emt
00:00:14]} Ra8 {[%clk 00:00:29]} {[%emt 00:00:02]} 33. Qa6 {[%clk 00:01:33]}
{[%emt 00:00:05]} Rb1+ {[%clk 00:00:30]} {[%emt 00:00:02]} 34. Kh2 {[%clk
00:01:33]} {[%emt 00:00:01]} Ne8 {[%clk 00:00:29]} {[%emt 00:00:04]} 35. Qc6
{[%clk 00:01:31]} {[%emt 00:00:03]} Rxa7 {[%clk 00:00:13]} {[%emt 00:00:19]} 36.
Bxa7 {[%clk 00:01:32]} Ne5 {[%clk 00:00:13]} {[%emt 00:00:02]} 37. Nxe5 {[%clk
00:01:32]} dxe5 {[%clk 00:00:14]} {[%emt 00:00:01]} 38. Qxe8 {[%emt 00:00:10]}
1-0

[Event "MČR v bleskovém šachu družstev 2019"]
[Site "Teplice, Czech Republic"]
[Date "2019.09.14"]
[Round "2.28"]
[White "Broucek, Tomas"]
[Black "Kuba, Jindrich"]
[Result "0-1"]
[TimeControl "3 mim. + 2 s"]
[BlackTitle "FM"]
[BlackFideId "318248"]
[WhiteElo "2044"]
[BlackElo "2223"]

1. d4 {[%clk 00:03:02]} {[%emt 00:00:02]} Nf6 {[%clk 00:03:04]} {[%emt
00:00:01]} 2. Nf3 {[%clk 00:03:02]} {[%emt 00:00:02]} e6 {[%clk 00:03:05]} 3.
e3 {[%clk 00:03:02]} {[%emt 00:00:02]} b6 {[%clk 00:03:05]} {[%emt 00:00:02]} 4.
Bd3 {[%clk 00:03:02]} {[%emt 00:00:03]} Bb7 {[%clk 00:03:06]} 5. O-O {[%clk
00:03:01]} {[%emt 00:00:02]} d5 {[%clk 00:03:06]} {[%emt 00:00:03]} 6. Nbd2
{[%clk 00:02:58]} {[%emt 00:00:05]} Nbd7 {[%clk 00:03:07]} {[%emt 00:00:01]} 7.
c3 {[%clk 00:02:53]} {[%emt 00:00:07]} Be7 {[%clk 00:03:08]} {[%emt 00:00:03]}
8. Qe2 {[%clk 00:02:52]} {[%emt 00:00:02]} O-O {[%clk 00:03:08]} {[%emt
00:00:02]} 9. e4 {[%clk 00:02:46]} {[%emt 00:00:08]} dxe4 {[%clk 00:02:53]}
{[%emt 00:00:17]} 10. Nxe4 {[%clk 00:02:46]} {[%emt 00:00:01]} Nxe4 {[%clk
00:02:54]} 11. Bxe4 {[%clk 00:02:47]} {[%emt 00:00:01]} Bxe4 {[%clk 00:02:54]}
{[%emt 00:00:03]} 12. Qxe4 {[%clk 00:02:49]} Nf6 {[%clk 00:02:55]} 13. Qe2
{[%clk 00:02:36]} {[%emt 00:00:14]} c5 {[%clk 00:02:53]} {[%emt 00:00:03]} 14.
dxc5 {[%clk 00:02:27]} {[%emt 00:00:12]} Bxc5 {[%clk 00:02:54]} {[%emt
00:00:02]} 15. Be3 {[%clk 00:02:28]} Bd6 {[%clk 00:02:44]} {[%emt 00:00:12]} 16.
Bg5 {[%clk 00:02:04]} {[%emt 00:00:27]} Be7 {[%clk 00:02:44]} {[%emt 00:00:02]}
17. Rfd1 {[%clk 00:02:02]} {[%emt 00:00:04]} Qc7 {[%clk 00:02:45]} 18. Qe5
{[%clk 00:01:47]} {[%emt 00:00:16]} Rac8 {[%clk 00:02:31]} {[%emt 00:00:15]} 19.
Qxc7 {[%clk 00:01:39]} {[%emt 00:00:11]} Rxc7 {[%clk 00:02:33]} 20. Rd3 {[%clk
00:01:38]} {[%emt 00:00:03]} h6 {[%clk 00:02:33]} {[%emt 00:00:03]} 21. Bf4
{[%clk 00:01:34]} {[%emt 00:00:04]} Rcc8 {[%clk 00:02:25]} {[%emt 00:00:11]} 22.
Rad1 {[%clk 00:01:35]} Nd5 {[%clk 00:02:26]} {[%emt 00:00:01]} 23. Be5 {[%clk
00:00:58]} {[%emt 00:00:39]} Rfe8 {[%clk 00:02:21]} {[%emt 00:00:07]} 24. h3
{[%clk 00:00:54]} {[%emt 00:00:07]} a6 {[%clk 00:02:17]} {[%emt 00:00:07]} 25.
g4 {[%clk 00:00:49]} {[%emt 00:00:07]} b5 {[%clk 00:02:17]} 26. a3 {[%clk
00:00:38]} {[%emt 00:00:13]} Bc5 {[%clk 00:02:10]} {[%emt 00:00:08]} 27. Bd4
{[%clk 00:00:35]} {[%emt 00:00:07]} Bxd4 {[%clk 00:02:08]} {[%emt 00:00:03]} 28.
Rxd4 {[%clk 00:00:34]} {[%emt 00:00:04]} Rc7 {[%clk 00:01:58]} {[%emt
00:00:10]} 29. Ne5 {[%clk 00:00:28]} {[%emt 00:00:09]} Rec8 {[%clk 00:01:57]}
{[%emt 00:00:03]} 30. Kg2 {[%clk 00:00:15]} {[%emt 00:00:15]} f6 {[%clk
00:01:54]} {[%emt 00:00:06]} 31. Nf3 {[%clk 00:00:16]} Kf7 {[%clk 00:01:55]}
{[%emt 00:00:01]} 32. Ne1 {[%clk 00:00:14]} {[%emt 00:00:03]} g5 {[%clk
00:01:55]} {[%emt 00:00:03]} 33. Nd3 {[%clk 00:00:14]} {[%emt 00:00:01]} a5
{[%clk 00:01:42]} {[%emt 00:00:15]} 34. Kg3 {[%clk 00:00:15]} {[%emt 00:00:01]}
Rc4 {[%clk 00:01:38]} {[%emt 00:00:07]} 35. Rxc4 {[%clk 00:00:09]} {[%emt
00:00:07]} Rxc4 {[%clk 00:01:38]} {[%emt 00:00:02]} 36. Re1 {[%clk 00:00:07]}
{[%emt 00:00:04]} e5 {[%clk 00:01:30]} {[%emt 00:00:10]} 37. f3 {[%clk
00:00:07]} {[%emt 00:00:02]} b4 {[%clk 00:01:19]} {[%emt 00:00:14]} 38. Rxe5
{[%clk 00:00:08]} {[%emt 00:00:01]} Nf4 {[%clk 00:01:04]} {[%emt 00:00:16]} 39.
Re4 {[%clk 00:00:03]} {[%emt 00:00:07]} Rxe4 {[%clk 00:01:03]} {[%emt
00:00:04]} 40. fxe4 {[%clk 00:00:04]} Nxd3 {[%clk 00:01:04]} {[%emt 00:00:01]}
41. axb4 {[%clk 00:00:06]} axb4 {[%clk 00:01:04]} 42. cxb4 {[%clk 00:00:07]}
{[%emt 00:00:02]} Nxb4 {[%clk 00:01:05]} 43. Kf3 {[%clk 00:00:07]} {[%emt
00:00:02]} Ke6 {[%clk 00:01:06]} 44. Ke3 {[%clk 00:00:09]} Ke5 {[%clk
00:01:08]} 45. b3 {[%clk 00:00:08]} {[%emt 00:00:03]} Na6 {[%clk 00:01:03]}
{[%emt 00:00:06]} 46. Kd3 {[%clk 00:00:09]} {[%emt 00:00:02]} Nc5+ 47. Kc4 Nxe4
{[%clk 00:01:05]} {[%emt 00:00:02]} 48. b4 {[%clk 00:00:12]} Nd6+ {[%clk
00:01:05]} {[%emt 00:00:01]} 49. Kc5 {[%clk 00:00:12]} {[%emt 00:00:02]} f5
{[%clk 00:01:03]} {[%emt 00:00:04]} 50. gxf5 {[%clk 00:00:12]} {[%emt
00:00:03]} Nxf5 {[%clk 00:01:04]} 51. b5 {[%clk 00:00:14]} Nd6 {[%clk
00:01:05]} {[%emt 00:00:01]} 52. b6 {[%clk 00:00:15]} Nb7+ {[%clk 00:01:06]}
{[%emt 00:00:01]} 53. Kc6 {[%clk 00:00:15]} {[%emt 00:00:02]} Na5+ {[%clk
00:01:06]} 54. Kb5 {[%clk 00:00:17]} Nb7 {[%emt 00:00:01]} 55. Kc6 Nd6 {[%clk
00:01:08]} {[%emt 00:00:01]} 56. Kc5 {[%clk 00:00:18]} {[%emt 00:00:03]} h5
{[%clk 00:01:09]} {[%emt 00:00:01]} 57. Kb4 {[%clk 00:00:13]} {[%emt 00:00:07]}
g4 {[%clk 00:01:09]} {[%emt 00:00:01]} 58. hxg4 {[%clk 00:00:14]} {[%emt
00:00:01]} hxg4 {[%clk 00:01:10]} 59. Kc3 {[%clk 00:00:15]} Kf4 {[%clk
00:01:11]} {[%emt 00:00:02]} 60. Kd2 {[%clk 00:00:15]} {[%emt 00:00:02]} Kf3
{[%clk 00:01:11]} {[%emt 00:00:01]} 61. Kd3 {[%clk 00:00:15]} {[%emt 00:00:03]}
g3 {[%clk 00:01:12]} {[%emt 00:00:01]} 62. Kd4 {[%clk 00:00:16]} g2 {[%clk
00:01:13]} 63. Kd5 {[%clk 00:00:18]} g1=Q {[%clk 00:01:13]} {[%emt 00:00:02]}
64. Kxd6 {[%clk 00:00:19]} {[%emt 00:00:01]} Qxb6+ {[%clk 00:01:13]} {[%emt
00:00:02]} 0-1

[Event "MČR v bleskovém šachu družstev 2019"]
[Site "Teplice, Czech Republic"]
[Date "2019.09.14"]
[Round "3.1"]
[White "Rubes, Jan"]
[Black "Kociscak, Jiri"]
[Result "1-0"]
[TimeControl "3 mim. + 2 s"]
[WhiteTitle "FM"]
[BlackTitle "IM"]
[WhiteFideId "338176"]
[BlackFideId "322121"]
[WhiteElo "2316"]
[BlackElo "2417"]

1. c4 {[%clk 00:03:02]} {[%emt 00:00:01]} e6 {[%clk 00:02:57]} {[%emt
00:00:07]} 2. Nc3 {[%clk 00:03:02]} {[%emt 00:00:02]} d5 {[%clk 00:02:56]}
{[%emt 00:00:03]} 3. d4 {[%clk 00:03:02]} {[%emt 00:00:01]} c5 {[%clk
00:02:57]} {[%emt 00:00:01]} 4. e3 {[%clk 00:02:55]} {[%emt 00:00:10]} Nc6
{[%clk 00:02:57]} {[%emt 00:00:01]} 5. Nf3 {[%clk 00:02:55]} {[%emt 00:00:01]}
Nf6 {[%clk 00:02:58]} {[%emt 00:00:02]} 6. a3 {[%clk 00:02:57]} cxd4 {[%clk
00:02:50]} {[%emt 00:00:11]} 7. exd4 {[%clk 00:02:56]} {[%emt 00:00:03]} Bd6
{[%clk 00:02:50]} {[%emt 00:00:01]} 8. cxd5 {[%clk 00:02:55]} {[%emt 00:00:04]}
Nxd5 {[%clk 00:02:43]} {[%emt 00:00:09]} 9. Ne4 {[%clk 00:02:43]} {[%emt
00:00:13]} Be7 {[%clk 00:02:40]} {[%emt 00:00:05]} 10. Bd3 {[%clk 00:02:41]}
{[%emt 00:00:04]} O-O {[%clk 00:02:39]} {[%emt 00:00:03]} 11. O-O {[%clk
00:02:39]} {[%emt 00:00:04]} b6 {[%clk 00:02:23]} {[%emt 00:00:18]} 12. Bg5
{[%clk 00:02:17]} {[%emt 00:00:24]} f6 {[%clk 00:02:03]} {[%emt 00:00:23]} 13.
Bh4 {[%clk 00:02:07]} {[%emt 00:00:12]} Bb7 {[%clk 00:02:01]} {[%emt 00:00:03]}
14. Re1 {[%clk 00:02:07]} {[%emt 00:00:01]} Qd7 {[%clk 00:01:46]} {[%emt
00:00:17]} 15. Bg3 {[%clk 00:01:59]} {[%emt 00:00:10]} Rac8 {[%clk 00:01:34]}
{[%emt 00:00:14]} 16. Qe2 {[%clk 00:01:59]} {[%emt 00:00:03]} Rfe8 {[%clk
00:01:24]} {[%emt 00:00:11]} 17. Rad1 {[%clk 00:02:00]} {[%emt 00:00:02]} Bf8
{[%clk 00:01:22]} {[%emt 00:00:04]} 18. Bb1 {[%clk 00:02:00]} {[%emt 00:00:02]}
h6 {[%clk 00:00:36]} {[%emt 00:00:48]} 19. Qd3 {[%clk 00:01:54]} {[%emt
00:00:07]} f5 {[%clk 00:00:34]} {[%emt 00:00:04]} 20. Ned2 {[%clk 00:01:43]}
{[%emt 00:00:13]} Rcd8 {[%clk 00:00:25]} {[%emt 00:00:12]} 21. b4 {[%clk
00:01:29]} {[%emt 00:00:16]} a6 {[%clk 00:00:19]} {[%emt 00:00:08]} 22. Nc4
{[%clk 00:01:28]} {[%emt 00:00:02]} b5 {[%clk 00:00:18]} {[%emt 00:00:03]} 23.
Ncd2 {[%clk 00:01:19]} {[%emt 00:00:11]} Nf6 {[%clk 00:00:18]} {[%emt
00:00:02]} 24. Nb3 {[%clk 00:01:00]} {[%emt 00:00:21]} Qd5 {[%clk 00:00:19]}
{[%emt 00:00:01]} 25. Ba2 {[%clk 00:00:39]} {[%emt 00:00:23]} Ne4 {[%clk
00:00:16]} {[%emt 00:00:04]} 26. Re2 {[%clk 00:00:34]} {[%emt 00:00:07]} Nxg3
{[%clk 00:00:12]} {[%emt 00:00:07]} 27. hxg3 {[%clk 00:00:34]} {[%emt
00:00:02]} Qd7 {[%clk 00:00:05]} {[%emt 00:00:08]} 28. Nc5 {[%clk 00:00:32]}
{[%emt 00:00:04]} Bxc5 {[%clk 00:00:06]} {[%emt 00:00:01]} 29. bxc5 {[%clk
00:00:33]} Na5 {[%clk 00:00:00]} {[%emt 00:00:06]} 30. Qxf5 {[%clk 00:00:33]}
{[%emt 00:00:02]} Bd5 {[%clk 00:00:00]} 31. Bxd5 {[%clk 00:00:33]} {[%emt
00:00:03]} exd5 {[%clk 00:00:00]} {[%emt 00:00:01]} 32. Qxd7 {[%clk 00:00:33]}
{[%emt 00:00:01]} 1-0

[Event "MČR v bleskovém šachu družstev 2019"]
[Site "Teplice, Czech Republic"]
[Date "2019.09.14"]
[Round "3.2"]
[White "Polak, Tomas"]
[Black "Hadraba, Vladimir"]
[Result "1-0"]
[TimeControl "3 mim. + 2 s"]
[WhiteTitle "GM"]
[WhiteFideId "300560"]
[BlackFideId "301663"]
[WhiteElo "2510"]
[BlackElo "2095"]

1. d4 {[%clk 00:03:02]} {[%emt 00:00:02]} Nf6 {[%clk 00:03:03]} {[%emt
00:00:01]} 2. c4 {[%clk 00:03:03]} g6 {[%clk 00:03:05]} 3. Nc3 {[%clk
00:03:04]} Bg7 {[%clk 00:03:06]} 4. e4 {[%clk 00:03:05]} d6 {[%clk 00:03:07]} 5.
Nf3 {[%clk 00:03:06]} {[%emt 00:00:05]} O-O 6. Be2 {[%emt 00:00:02]} Nbd7
{[%clk 00:03:07]} {[%emt 00:00:03]} 7. O-O {[%clk 00:03:08]} {[%emt 00:00:02]}
e5 {[%clk 00:03:08]} {[%emt 00:00:01]} 8. Re1 {[%clk 00:03:09]} {[%emt
00:00:01]} c6 {[%clk 00:03:08]} {[%emt 00:00:01]} 9. Bf1 {[%clk 00:03:08]}
{[%emt 00:00:03]} a5 {[%clk 00:03:09]} {[%emt 00:00:01]} 10. dxe5 {[%clk
00:03:00]} {[%emt 00:00:10]} dxe5 {[%clk 00:03:06]} {[%emt 00:00:05]} 11. Na4
{[%clk 00:03:00]} {[%emt 00:00:02]} Qe7 {[%clk 00:02:57]} {[%emt 00:00:11]} 12.
Qc2 {[%clk 00:02:50]} {[%emt 00:00:12]} Ne8 {[%clk 00:02:29]} {[%emt 00:00:30]}
13. c5 {[%clk 00:02:46]} {[%emt 00:00:06]} Nc7 {[%clk 00:02:28]} {[%emt
00:00:02]} 14. Be3 {[%clk 00:02:30]} {[%emt 00:00:18]} Ne6 {[%clk 00:02:26]}
{[%emt 00:00:05]} 15. Rad1 {[%clk 00:02:30]} {[%emt 00:00:01]} Qf6 {[%clk
00:02:06]} {[%emt 00:00:21]} 16. Rd6 {[%clk 00:02:22]} {[%emt 00:00:11]} Re8
{[%clk 00:01:55]} {[%emt 00:00:13]} 17. Bg5 {[%clk 00:02:09]} {[%emt 00:00:15]}
Nxg5 {[%clk 00:01:41]} {[%emt 00:00:16]} 18. Rxf6 {[%clk 00:02:09]} {[%emt
00:00:01]} Bxf6 {[%clk 00:01:41]} {[%emt 00:00:01]} 19. Nxg5 {[%clk 00:02:08]}
{[%emt 00:00:04]} Bxg5 {[%clk 00:01:41]} {[%emt 00:00:02]} 20. Rd1 {[%clk
00:02:03]} {[%emt 00:00:07]} Rb8 {[%clk 00:01:31]} {[%emt 00:00:12]} 21. g3
{[%clk 00:01:59]} {[%emt 00:00:06]} Nf8 {[%clk 00:01:29]} {[%emt 00:00:04]} 22.
Qc3 {[%clk 00:01:30]} {[%emt 00:00:31]} Bg4 {[%clk 00:01:07]} {[%emt 00:00:24]}
23. Rd3 {[%clk 00:01:30]} {[%emt 00:00:03]} Ne6 {[%clk 00:00:59]} {[%emt
00:00:10]} 24. Qxe5 {[%clk 00:01:25]} {[%emt 00:00:07]} Bh6 {[%clk 00:00:47]}
{[%emt 00:00:15]} 25. Qc3 {[%clk 00:01:18]} {[%emt 00:00:09]} Bg7 {[%clk
00:00:45]} {[%emt 00:00:03]} 26. Qxa5 {[%clk 00:01:16]} {[%emt 00:00:04]} Rbd8
{[%clk 00:00:37]} {[%emt 00:00:10]} 27. Rd6 {[%clk 00:00:44]} {[%emt 00:00:34]}
Bf8 {[%clk 00:00:34]} {[%emt 00:00:05]} 28. Rxd8 {[%clk 00:00:43]} {[%emt
00:00:03]} Rxd8 {[%clk 00:00:35]} {[%emt 00:00:01]} 29. Nc3 {[%clk 00:00:38]}
{[%emt 00:00:06]} Bxc5 {[%clk 00:00:29]} {[%emt 00:00:08]} 30. Ne2 {[%clk
00:00:31]} {[%emt 00:00:10]} b6 {[%clk 00:00:26]} {[%emt 00:00:06]} 31. Qc3
{[%clk 00:00:30]} {[%emt 00:00:03]} Nd4 {[%clk 00:00:19]} {[%emt 00:00:09]} 32.
Nxd4 {[%clk 00:00:28]} {[%emt 00:00:04]} Rxd4 {[%clk 00:00:18]} {[%emt
00:00:02]} 33. h3 {[%clk 00:00:26]} {[%emt 00:00:04]} Be6 {[%clk 00:00:19]}
{[%emt 00:00:01]} 34. a3 {[%clk 00:00:19]} {[%emt 00:00:10]} Rxe4 {[%clk
00:00:19]} {[%emt 00:00:03]} 35. b4 {[%clk 00:00:19]} Bf8 {[%clk 00:00:18]}
{[%emt 00:00:03]} 36. Qxc6 {[%clk 00:00:19]} {[%emt 00:00:02]} Re1 {[%clk
00:00:17]} {[%emt 00:00:03]} 37. Kg2 {[%clk 00:00:19]} {[%emt 00:00:03]} Ra1
{[%clk 00:00:14]} {[%emt 00:00:04]} 38. Qxb6 {[%clk 00:00:13]} {[%emt
00:00:08]} Rxa3 {[%clk 00:00:14]} {[%emt 00:00:02]} 39. h4 {[%clk 00:00:08]}
{[%emt 00:00:07]} Bd5+ {[%clk 00:00:13]} {[%emt 00:00:02]} 40. Kh3 {[%clk
00:00:07]} {[%emt 00:00:04]} Be6+ {[%clk 00:00:12]} {[%emt 00:00:03]} 41. Kh2
{[%clk 00:00:09]} Ra2 {[%clk 00:00:12]} {[%emt 00:00:02]} 42. Bg2 {[%clk
00:00:08]} {[%emt 00:00:03]} Rb2 {[%clk 00:00:11]} {[%emt 00:00:03]} 43. b5
{[%clk 00:00:10]} Bd7 {[%clk 00:00:09]} {[%emt 00:00:04]} 44. Bc6 {[%clk
00:00:10]} {[%emt 00:00:02]} Be6 {[%clk 00:00:08]} {[%emt 00:00:02]} 45. Kg2
{[%clk 00:00:10]} {[%emt 00:00:02]} h5 {[%clk 00:00:08]} {[%emt 00:00:02]} 46.
Qd4 {[%clk 00:00:11]} {[%emt 00:00:01]} Bg7 {[%clk 00:00:09]} {[%emt 00:00:01]}
47. Qd8+ {[%clk 00:00:11]} {[%emt 00:00:01]} Kh7 {[%clk 00:00:10]} 48. Kf1
{[%clk 00:00:08]} {[%emt 00:00:06]} Bc4+ {[%clk 00:00:10]} {[%emt 00:00:02]} 49.
Kg1 {[%clk 00:00:07]} {[%emt 00:00:02]} Bxb5 {[%clk 00:00:09]} {[%emt
00:00:02]} 50. Qb8 {[%clk 00:00:07]} {[%emt 00:00:03]} Rb1+ {[%clk 00:00:09]}
{[%emt 00:00:02]} 51. Kh2 {[%clk 00:00:08]} Bd3 {[%clk 00:00:10]} 52. Qf4
{[%clk 00:00:08]} {[%emt 00:00:04]} Bf5 {[%clk 00:00:10]} {[%emt 00:00:02]} 53.
Be8 {[%clk 00:00:09]} {[%emt 00:00:02]} Rb7 {[%clk 00:00:07]} {[%emt 00:00:04]}
54. Bc6 {[%clk 00:00:09]} {[%emt 00:00:01]} Rb2 {[%clk 00:00:06]} {[%emt
00:00:03]} 55. Kg2 {[%clk 00:00:10]} {[%emt 00:00:01]} Be6 {[%clk 00:00:06]}
{[%emt 00:00:03]} 56. Be4 {[%clk 00:00:10]} {[%emt 00:00:02]} Bc3 {[%clk
00:00:03]} {[%emt 00:00:05]} 57. Qe3 {[%clk 00:00:08]} {[%emt 00:00:05]} Bg7
{[%clk 00:00:04]} {[%emt 00:00:01]} 58. Qd3 {[%clk 00:00:06]} {[%emt 00:00:04]}
Bg4 {[%clk 00:00:04]} {[%emt 00:00:01]} 59. Bd5 {[%clk 00:00:06]} {[%emt
00:00:02]} Be6 {[%clk 00:00:03]} {[%emt 00:00:03]} 60. Bxe6 {[%clk 00:00:07]}
{[%emt 00:00:01]} fxe6 {[%clk 00:00:04]} 61. Qe4 {[%clk 00:00:08]} {[%emt
00:00:01]} e5 {[%clk 00:00:05]} {[%emt 00:00:01]} 62. Kf1 {[%clk 00:00:08]}
{[%emt 00:00:02]} Rb6 {[%clk 00:00:03]} {[%emt 00:00:03]} 63. f3 {[%clk
00:00:09]} {[%emt 00:00:02]} Rf6 {[%clk 00:00:03]} {[%emt 00:00:02]} 64. Kg2
{[%clk 00:00:10]} {[%emt 00:00:01]} Re6 {[%clk 00:00:04]} 65. g4 {[%clk
00:00:11]} {[%emt 00:00:01]} hxg4 {[%clk 00:00:03]} {[%emt 00:00:03]} 66. fxg4
{[%clk 00:00:12]} Kh6 {[%clk 00:00:03]} {[%emt 00:00:02]} 67. g5+ {[%clk
00:00:11]} {[%emt 00:00:03]} Kh7 {[%clk 00:00:04]} {[%emt 00:00:01]} 68. h5
{[%clk 00:00:12]} {[%emt 00:00:01]} Rd6 {[%clk 00:00:04]} {[%emt 00:00:02]} 69.
h6 {[%clk 00:00:10]} {[%emt 00:00:05]} Bh8 {[%clk 00:00:00]} {[%emt 00:00:04]}
1-0